bitfinex-derivatives/quotes_SOLF0:USTF0_20260114
["timestamp","ask_amount","ask_price","bid_price","bid_amount"]
[1768378226216,181.59878776,145.14,145.06,4.80942074]
[1768378227012,181.59878776,145.14,145.09,0.05217424]
[1768378228123,4.64775054,145.14,145.09,0.05217424]
[1768378230021,10.85115054,145.14,145.09,0.05217424]
[1768378230921,4.64775054,145.14,145.09,0.05217424]
[1768378243034,4.64775054,145.14,145.09,4.62638776]
[1768378243224,4.76022572,145.16,145.09,4.62638776]
[1768378243429,0.04816324,145.13,145.09,4.62638776]
[1768378243628,0.04816324,145.13,145.09,4.57421352]
[1768378243829,0.04816324,145.13,145.1,0.04776276]
[1768378244930,0.04816324,145.13,145.1,6.25276276]
[1768378245925,4.76022572,145.18,145.11,10.77881352]
[1768378246831,10.96192572,145.18,145.11,10.77881352]
[1768378247036,4.76022572,145.18,145.12,4.57421352]
[1768378247239,4.76022572,145.18,145.13,0.04813895]
[1768378247535,4.76022572,145.2,145.13,4.62235247]
[1768378247936,4.76022572,145.2,145.13,4.57421352]
[1768378248131,4.76022572,145.2,145.15,0.05198771]
[1768378250842,4.76022572,145.2,145.15,6.25478771]
[1768378251339,4.76022572,145.2,145.15,0.05198771]
[1768378253543,4.76022572,145.2,145.15,6.25478771]
[1768378254742,4.76022572,145.2,145.15,0.05198771]
[1768378258946,4.76022572,145.2,145.15,6.25478771]
[1768378260548,4.76022572,145.22,145.15,4.62620123]
[1768378260747,4.76022572,145.24,145.15,4.62620123]
[1768378260947,4.76022572,145.24,145.15,4.57421352]
[1768378261347,4.76022572,145.24,145.18,0.05060442]
[1768378261542,4.76022572,145.24,145.19,6.2011]
[1768378261746,4.76022572,145.24,145.18,4.62481794]
[1768378261947,4.76022572,145.28,145.18,4.62481794]
[1768378262447,4.76022572,145.27,145.18,4.57421352]
[1768378262950,4.76022572,145.27,145.21,0.04766036]
[1768378263751,10.95812572,145.27,145.21,0.04766036]
[1768378264048,4.76022572,145.26,145.21,0.04766036]
[1768378265745,4.76022572,145.26,145.22,6.1999]
[1768378266153,4.76022572,145.26,145.21,6.24796036]
[1768378267343,0.05033741,145.25,145.21,6.24796036]
[1768378268155,0.05033741,145.25,145.22,6.1999]
[1768378271058,0.05033741,145.25,145.21,0.04766036]
[1768378275867,12.93567252,145.28,145.21,4.66470684]
[1768378276765,4.61237079,145.28,145.21,4.66470684]
[1768378277172,4.61237079,145.28,145.22,6.1998]
[1768378279374,17.55083646,145.29,145.23,10.79588336]
[1768378279764,22.22483917,145.29,145.23,10.79588336]
[1768378279959,4.67400271,145.28,145.21,4.59638336]
[1768378280859,4.67400271,145.28,145.22,6.1999]
[1768378281465,4.67400271,145.28,145.24,0.04937037]
[1768378284182,4.67400271,145.26,145.22,6.1999]
[1768378285478,4.67400271,145.26,145.23,0.04905034]
[1768378292681,2.71e-06,145.26,145.23,6.24845034]
[1768378298084,2.71e-06,145.26,145.23,0.04905034]
[1768378302788,2.71e-06,145.26,145.2,10.96903985]
[1768378303990,2.71e-06,145.26,145.22,0.0444965]
[1768378304685,6.19830271,145.26,145.2,4.76863985]
[1768378305187,4.36300716,145.25,145.2,4.76863985]
[1768378305388,4.36300716,145.25,145.19,81.38]
[1768378305389,4.36300716,145.24,145.18,4.49727109]
[1768378307593,10.56220716,145.24,145.18,4.49727109]
[1768378309285,4.36300716,145.24,145.18,4.49727109]
[1768378310097,4.36300716,145.24,145.18,10.69887109]
[1768378313403,4.36300716,145.24,145.16,88.00307282]
[1768378313603,4.36300716,145.24,145.17,4.49727109]
[1768378315005,4.36300716,145.24,145.17,10.69917109]
[1768378315906,10.56210716,145.24,145.18,4.49727109]
[1768378325613,4.67954729,145.23,145.18,4.49727109]
[1768378326518,4.67954729,145.18,145.12,4.44399864]
[1768378326821,82.78,145.22,145.1,4.44399864]
[1768378326822,6.80534902,145.17,145.1,4.44399864]
[1768378327612,6.80534902,145.17,145.1,10.64899864]
[1768378328627,13.00754902,145.17,145.1,10.64899864]
[1768378329427,4.67954729,145.16,145.1,10.64899864]
[1768378329613,4.67954729,145.16,145.1,4.44399864]
[1768378330826,4.67954729,145.15,145.09,6.2054]
[1768378331029,4.67954729,145.15,145.09,10.64939864]
[1768378331425,4.67954729,145.17,145.1,4.44399864]
[1768378331726,4.67954729,145.17,145.11,0.05106638]
[1768378332828,4.67954729,145.16,145.11,0.05106638]
[1768378339132,4.59367183,145.18,145.11,4.74548153]
[1768378339528,4.59367183,145.18,145.11,4.69441515]
[1768378339834,0.04413001,145.16,145.13,0.047075]
[1768378341535,4.59367183,145.18,145.13,0.047075]
[1768378343033,4.59367183,145.18,145.13,6.250775]
[1768378346539,4.59367183,145.18,145.14,3.32657842]
[1768378346844,115.7083,145.27,145.16,3.32657842]
[1768378347048,18.75161315,145.29,145.2,3.32657842]
[1768378347049,15.42503473,145.29,145.2,3.32657842]
[1768378347351,15.42503473,145.29,145.19,4.69441515]
[1768378347352,6.1974,145.28,145.22,3.32657842]
[1768378347541,6.1974,145.28,145.23,0.04635412]
[1768378348731,4.59367183,145.27,145.23,0.04635412]
[1768378350140,4.59367183,145.27,145.19,8.02099357]
[1768378350338,4.59367183,145.26,145.19,8.02099357]
[1768378351539,4.59367183,145.26,145.21,0.04889695]
[1768378354947,0.04758639,145.25,145.21,0.04889695]
[1768378356449,4.81752114,145.25,145.21,0.04889695]
[1768378373566,11.01622114,145.25,145.21,0.04889695]
[1768378378482,4.76993475,145.23,145.15,4.89231608]
[1768378379787,0.04776979,145.2,145.18,0.04695343]
[1768378380892,4.81770454,145.2,145.15,4.89231608]
[1768378381881,4.81770454,145.2,145.15,11.09521608]
[1768378382385,4.81770454,145.2,145.13,11.09571608]
[1768378382591,4.76993475,145.19,145.13,11.09571608]
[1768378383089,0.05042719,145.17,145.13,11.09571608]
[1768378386894,0.05042719,145.17,145.14,6.2033]
[1768378388094,4.76993475,145.19,145.14,6.2033]
[1768378388287,4.76993475,145.19,145.14,6.25342538]
[1768378389496,0.05296823,145.18,145.14,6.25342538]
[1768378391896,4.67064536,145.18,145.14,0.05012538]
[1768378395491,4.61767713,145.17,145.11,11.19230904]
[1768378396901,4.61767713,145.16,145.11,11.19230904]
[1768378397503,0.05128892,145.15,145.11,11.19230904]
[1768378397696,0.05128892,145.15,145.12,0.04692263]
[1768378399203,4.99084132,145.15,145.12,0.04692263]
[1768378407196,4.99084132,145.15,145.1,6.2049]
[1768378408303,4.9395524,145.14,145.08,11.21222817]
[1768378408503,4.9395524,145.14,145.07,5.00672817]
[1768378408710,7.06754314,145.13,145.07,5.00672817]
[1768378409300,0.0493281,145.11,145.07,5.00672817]
[1768378409907,0.0493281,145.11,145.07,6.2063]
[1768378413608,0.0493281,145.11,145.08,0.05222045]
[1768378415110,0.0493281,145.11,145.08,2.18021119]
[1768378415312,0.0493281,145.11,145.08,0.05222045]
[1768378420110,0.0493281,145.11,145.08,2.18021119]
[1768378420311,0.0493281,145.11,145.08,0.05222045]
[1768378422418,4.85256465,145.11,145.06,6.2067]
[1768378423517,0.0493281,145.11,145.06,11.07498356]
[1768378423711,0.0493281,145.11,145.07,4.86828356]
[1768378424114,0.0493281,145.11,145.07,11.07458356]
[1768378426321,0.0493281,145.11,145.07,4.86828356]
[1768378426719,0.0493281,145.11,145.05,4.86828356]
[1768378427821,0.0493281,145.11,145.06,11.07498356]
[1768378428520,0.0493281,145.11,145.06,4.86828356]
[1768378430323,6.2541281,145.11,145.06,4.86828356]
[1768378435824,11.05736465,145.11,145.05,4.86828356]
[1768378438125,11.00833655,145.1,145.05,4.86828356]
[1768378442324,11.00833655,145.1,145.06,0.04534366]
[1768378445334,6.2055,145.09,145.06,0.04534366]
[1768378445630,11.31780455,145.09,145.03,4.90795833]
[1768378446934,0.04812779,145.07,145.05,0.05119818]
[1768378449235,5.16043234,145.07,145.01,4.90795833]
[1768378450836,5.16043234,145.07,145.01,11.11675833]
[1768378452141,11.36673234,145.07,145.01,11.11675833]
[1768378452442,5.16043234,145.07,145.02,4.90795833]
[1768378471558,0.04812779,145.07,145.02,4.90795833]
[1768378471764,11.28741255,145.1,145.04,4.76058748]
[1768378473064,0.04982816,145.08,145.04,4.76058748]
[1768378475761,11.45086598,145.12,145.06,5.22630431]
[1768378475965,5.24636598,145.14,145.06,5.22630431]
[1768378476965,11.45006598,145.14,145.07,11.43260431]
[1768378477267,0.04499242,145.11,145.07,11.43260431]
[1768378477567,0.04499242,145.11,145.09,0.05089554]
[1768378478066,0.04499242,145.11,145.07,11.43260431]
[1768378481569,11.45006598,145.14,145.07,11.43260431]
[1768378482773,0.04389878,145.12,145.07,11.43260431]
[1768378483686,0.04389878,145.12,145.08,5.22630431]
[1768378490070,0.04389878,145.12,145.08,11.43210431]
[1768378490775,0.04389878,145.12,145.09,5.22630431]
[1768378493482,0.04389878,145.12,145.09,5.27483905]
[1768378496080,5.29026476,145.12,145.07,5.22630431]
[1768378497791,5.29026476,145.12,145.07,11.43260431]
[1768378498782,0.04389878,145.12,145.08,11.43220431]
[1768378499184,5.24636598,145.14,145.08,11.43220431]
[1768378499485,5.24636598,145.16,145.1,5.22630431]
[1768378499685,5.24636598,145.16,145.1,5.27735039]
[1768378500680,5.24636598,145.16,145.1,11.48235039]
[1768378500884,6.2024,145.17,145.1,11.48235039]
[1768378500885,0.04456766,145.14,145.1,5.27735039]
[1768378501079,6.2024,145.17,145.1,5.27735039]
[1768378501278,11.44876598,145.17,145.1,5.27735039]
[1768378501881,11.44876598,145.17,145.11,6.2046]
[1768378502182,11.44876598,145.17,145.11,11.43090431]
[1768378502382,0.05015736,145.15,145.11,11.43090431]
[1768378503184,0.05015736,145.15,145.11,5.22630431]
[1768378508589,5.27044048,145.19,145.13,4.99681553]
[1768378508989,5.27044048,145.21,145.13,4.99681553]
[1768378509490,6.2008,145.2,145.14,4.99681553]
[1768378509690,11.47124048,145.2,145.14,4.99681553]
[1768378509890,0.0512786,145.18,145.14,4.99681553]
[1768378513095,0.0512786,145.18,145.15,0.0441239]
[1768378514395,0.0512786,145.18,145.15,6.2470239]
[1768378514693,0.0512786,145.18,145.15,0.0441239]
[1768378515586,0.0512786,145.18,145.15,11.24373943]
[1768378515789,2.12775375,145.2,145.16,4.99681553]
[1768378516492,2.12775375,145.2,145.15,11.24373943]
[1768378516690,7.39819423,145.2,145.15,0.0441239]
[1768378516996,7.39819423,145.18,145.11,4.99681553]
[1768378517789,13.59979423,145.18,145.12,4.99681553]
[1768378518199,0.05112088,145.16,145.13,0.05129828]
[1768378524299,6.25372088,145.16,145.13,0.05129828]
[1768378524499,8.38147463,145.16,145.11,5.10386234]
[1768378525997,8.38147463,145.16,145.09,6.2052]
[1768378525998,13.26122272,145.16,145.1,5.10386234]
[1768378526306,4.93086897,145.16,145.11,5.10386234]
[1768378526506,0.05112088,145.16,145.11,5.10386234]
[1768378527914,6.2013,145.19,145.13,5.10386234]
[1768378528605,7.00750184,145.2,145.13,5.10386234]
[1768378529207,0.04667914,145.18,145.13,5.10386234]
[1768378542414,0.04667914,145.18,145.13,11.30756234]
[1768378542616,0.04667914,145.18,145.14,5.29144727]
[1768378548616,6.24827914,145.18,145.14,5.29144727]
[1768378548818,13.67622222,145.18,145.12,5.29144727]
[1768378552825,11.54846847,145.18,145.12,5.29144727]
[1768378553028,13.67622222,145.18,145.12,5.29144727]
[1768378561732,13.67622222,145.18,145.08,180.10155375]
[1768378561733,13.63054308,145.16,145.1,5.29144727]
[1768378562535,0.04903325,145.14,145.1,5.29144727]
[1768378562937,0.04903325,145.14,145.1,11.49644727]
[1768378563834,0.04903325,145.14,145.11,5.29144727]
[1768378587262,0.04903325,145.14,145.11,4.66051354]
[1768378587661,6.2021,145.17,145.11,4.66051354]
[1768378588966,0.04375927,145.15,145.13,0.04433712]
[1768378594165,0.04375927,145.15,145.09,5.11676843]
[1768378595766,6.24665927,145.15,145.09,5.11676843]
[1768378596268,6.24665927,145.15,145.1,4.67953047]
[1768378603374,0.04375927,145.15,145.1,4.67953047]
[1768378628601,0.04375927,145.15,145.1,10.88453047]
[1768378628800,0.04375927,145.15,145.11,4.59796962]
[1768378639210,0.04375927,145.15,145.11,10.80246962]
[1768378639409,4.89281472,145.19,145.12,4.91027981]
[1768378639710,2.12876413,145.2,145.12,4.91027981]
[1768378640405,6.72626555,145.2,145.12,4.91027981]
[1768378640606,0.04419219,145.17,145.12,4.91027981]
[1768378643615,0.04419219,145.17,145.12,11.11437981]
[1768378643816,0.04419219,145.17,145.13,4.91027981]
[1768378656631,6.2017,145.18,145.13,4.91027981]
[1768378656832,6.2017,145.18,145.15,4.49372831]
[1768378658330,189.7106425,145.21,145.15,4.49372831]
[1768378660836,195.9110425,145.21,145.15,4.49372831]
[1768378665835,6.2004,145.21,145.15,4.49372831]
[1768378666841,6.1999,145.23,145.17,4.49372831]
[1768378667734,4.74969104,145.24,145.19,4.54443749]
[1768378671938,2.17872644,145.23,145.19,4.54443749]
[1768378672635,6.92841748,145.23,145.19,0.05070918]
[1768378673840,13.12791748,145.23,145.19,0.05070918]
[1768378676339,10.99915335,145.23,145.19,0.05070918]
[1768378676547,13.12791748,145.23,145.19,0.05070918]
[1768378678346,6.1999,145.22,145.19,0.05070918]
[1768378679347,8.32926413,145.21,145.15,4.49372831]
[1768378679948,2.12876413,145.21,145.16,4.49372831]
[1768378680549,0.05147728,145.2,145.16,4.49372831]
[1768378680950,2.12876413,145.19,145.14,4.49372831]
[1768378681248,6.87845517,145.19,145.14,4.49372831]
[1768378681947,13.07965517,145.19,145.14,4.49372831]
[1768378683554,6.87845517,145.19,145.14,4.49372831]
[1768378685550,0.05147728,145.2,145.14,4.49372831]
[1768378686953,0.05147728,145.2,145.16,4.57300349]
[1768378692452,6.78210716,145.19,145.13,4.57300349]
[1768378693660,12.98370716,145.19,145.13,4.57300349]
[1768378693860,12.98370716,145.19,145.15,0.05247399]
[1768378695268,10.85494303,145.19,145.15,0.05247399]
[1768378701771,6.2016,145.18,145.15,0.05247399]
[1768378702475,6.2016,145.18,145.13,4.57300349]
[1768378703766,0.05001664,145.17,145.13,4.57300349]
[1768378710267,4.61671552,145.17,145.11,4.52960369]
[1768378710675,4.56669888,145.17,145.11,4.52960369]
[1768378711083,0.04545095,145.15,145.11,4.52960369]
[1768378720799,6.24845095,145.15,145.11,4.52960369]
[1768378724805,10.80317862,145.14,145.08,92.22259245]
[1768378725108,10.80317862,145.14,145.09,4.59669245]
[1768378725403,6.2034,145.14,145.09,4.59669245]
[1768378725597,0.04545095,145.15,145.09,4.59669245]
[1768378725598,6.2038,145.13,145.09,4.59669245]
[1768378726801,6.2043,145.12,145.08,4.59669245]
[1768378727002,4.64522957,145.15,145.08,4.59669245]
[1768378727204,4.59977862,145.15,145.08,4.59669245]
[1768378727705,0.04449183,145.13,145.08,4.59669245]
[1768378738718,10.84827045,145.13,145.08,4.59669245]
[1768378743922,4.59977862,145.17,145.08,4.59669245]
[1768378745420,6.25286634,145.14,145.08,4.59669245]
[1768378746127,6.2038,145.13,145.08,4.59669245]
[1768378750037,6.2042,145.12,145.08,4.59669245]
[1768378750932,6.25296634,145.14,145.08,4.59669245]
[1768378751122,0.04946634,145.14,145.08,4.59669245]
[1768378753038,6.2038,145.13,145.08,4.59669245]
[1768378757141,6.2042,145.12,145.08,4.59669245]
[1768378757526,4.7278881,145.13,145.08,4.59669245]
[1768378757730,4.7278881,145.13,145.06,81.46]
[1768378757731,4.7278881,145.11,145.06,86.1718911]
[1768378758146,6.2051,145.1,145.06,86.1718911]
[1768378758438,6.24894135,145.1,145.06,86.1718911]
[1768378758838,6.24894135,145.1,145.06,4.7118911]
[1768378766946,0.04384135,145.1,145.06,4.7118911]
[1768378768041,4.30479906,145.1,145.04,4.58790201]
[1768378769942,10.51009906,145.1,145.04,4.58790201]
[1768378773542,10.46655771,145.09,145.04,4.58790201]
[1768378778949,4.48593593,145.08,145.0,85.90536401]
[1768378779755,0.04476642,145.05,145.0,85.90536401]
[1768378780842,0.04476642,145.05,145.01,6.2089]
[1768378782057,0.04476642,145.05,145.0,85.90536401]
[1768378784646,0.04476642,145.05,145.0,88.03520741]
[1768378786959,6.25196642,145.05,145.0,85.90536401]
[1768378787551,6.25196642,145.05,145.01,0.04864342]
[1768378787757,0.04476642,145.05,145.01,0.04864342]
[1768378794759,0.04476642,145.05,144.94,117.3254]
[1768378794760,4.48593593,145.04,144.97,10.63576401]
[1768378794967,4.48593593,145.04,144.97,92.13576401]
[1768378795755,10.69363593,145.04,144.97,92.13576401]
[1768378796165,0.04942931,145.02,144.97,92.13576401]
[1768378796567,0.04942931,145.02,144.98,4.42536401]
[1768378798872,10.69363593,145.04,144.98,6.55520741]
[1768378800271,0.04565531,145.02,144.98,6.55520741]
[1768378800768,0.04565531,145.02,144.99,4.42536401]
[1768378805279,6.2077,145.04,144.99,4.42536401]
[1768378806586,0.04566701,145.03,144.99,4.42536401]
[1768378807781,4.10159253,145.03,144.98,2.1298434]
[1768378807983,4.10159253,145.03,144.98,6.0647819]
[1768378808177,0.04566701,145.03,144.98,6.0647819]
[1768378808377,0.04566701,145.03,144.99,3.9349385]
[1768378812685,4.10159253,145.03,144.97,85.4349385]
[1768378813978,4.10159253,145.03,144.97,91.6453385]
[1768378814485,4.10159253,145.03,144.97,10.1453385]
[1768378814684,4.05592552,145.02,144.95,10.1462385]
[1768378815085,4.05592552,145.02,144.96,3.9349385]
[1768378815582,0.05142527,145.0,144.96,3.9349385]
[1768378824196,211.77498036,145.05,144.97,3.93450893]
[1768378825699,215.65374969,145.05,144.97,3.93450893]
[1768378825896,6.2077,145.04,144.98,3.8871734]
[1768378826696,6.2077,145.04,145.0,0.04637377]
[1768378827103,6.2077,145.04,144.98,3.8871734]
[1768378827403,0.04675136,145.03,144.98,3.8871734]
[1768378833305,0.04675136,145.03,145.0,3.8871734]
[1768378834609,3.87876933,145.07,145.0,3.8871734]
[1768378834809,6.2068,145.06,145.0,3.8871734]
[1768378835000,10.08556933,145.06,145.0,3.8871734]
[1768378836210,84.85304762,145.08,145.01,3.90605095]
[1768378836211,13.14577007,145.08,145.01,3.90605095]
[1768378836408,9.81272245,145.08,145.02,3.95812968]
[1768378837704,3.33304762,145.09,145.02,3.95812968]
[1768378837904,3.60652245,145.12,145.04,3.90605095]
[1768378838710,0.04724531,145.09,145.07,0.04525631]
[1768378841204,3.60652245,145.14,145.07,3.95130726]
[1768378841606,3.60652245,145.14,145.07,3.90605095]
[1768378842509,3.60652245,145.14,145.09,0.04555404]
[1768378842902,9.80992245,145.14,145.09,0.04555404]
[1768378844208,3.60652245,145.14,145.09,0.04555404]
[1768378848112,6.93957007,145.13,145.06,10.11275095]
[1768378849418,6.93957007,145.13,145.08,0.04849656]
[1768378850006,3.60652245,145.13,145.08,0.04849656]
[1768378850213,6.93957007,145.13,145.08,0.04849656]
[1768378851320,13.14357007,145.13,145.08,0.04849656]
[1768378851918,3.60652245,145.12,145.08,0.04849656]
[1768378852810,9.81072245,145.12,145.05,6.2071]
[1768378853016,177.9871,145.16,145.01,3.90605095]
[1768378853017,3.60652245,145.1,145.01,3.90605095]
[1768378853217,96.5005,145.14,145.01,3.90605095]
[1768378853218,6.93957007,145.09,145.01,3.90605095]
[1768378853416,3.60652245,145.08,145.01,3.90605095]
[1768378853721,3.60652245,145.08,145.03,6.208]
[1768378854124,3.60652245,145.08,145.04,0.04882639]
[1768378863233,9.81192245,145.1,145.04,0.04882639]
[1768378863429,3.60652245,145.09,145.04,0.04882639]
[1768378865628,13.02063304,145.11,145.04,9.64300868]
[1768378866231,3.48288542,145.11,145.05,6.207]
[1768378867032,3.48288542,145.11,145.04,3.43540868]
[1768378868029,3.48288542,145.11,145.04,9.64300868]
[1768378868532,3.48288542,145.11,145.05,3.38658229]
[1768378869433,81.48,145.13,145.06,3.38658229]
[1768378869434,3.48288542,145.13,145.06,3.38658229]
[1768378870236,3.48288542,145.13,145.08,0.05261209]
[1768378870838,9.68678542,145.13,145.08,0.05261209]
[1768378871838,3.48288542,145.12,145.08,0.05261209]
[1768378876041,6.2039,145.13,145.08,0.05261209]
[1768378876244,3.48288542,145.14,145.08,0.05261209]
[1768378877443,2.12986402,145.13,145.08,0.05261209]
[1768378879733,9.68648542,145.14,145.08,0.05261209]
[1768378879934,9.68648542,145.14,145.08,3.4852956]
[1768378883449,11.6596627,145.16,145.09,9.63808351]
[1768378883642,3.32729868,145.16,145.1,3.43268351]
[1768378884042,5.4571627,145.18,145.1,3.43268351]
[1768378884248,5.4571627,145.18,145.12,0.04549898]
[1768378884547,5.4571627,145.18,145.12,3.47818249]
[1768378885851,3.32729868,145.17,145.12,3.47818249]
[1768378890057,3.32729868,145.17,145.12,9.68218249]
[1768378891061,3.32729868,145.19,145.13,9.63648351]
[1768378894858,3.32729868,145.17,145.12,0.04549898]
[1768378897954,3.32729868,145.17,145.12,6.24949898]
[1768378903959,3.32729868,145.17,145.13,6.2038]
[1768378907572,3.61883143,145.2,145.14,9.67534868]
[1768378908369,3.61883143,145.2,145.14,6.2032]
[1768378908572,3.61883143,145.2,145.16,0.05132126]
[1768378908773,3.66527012,145.18,145.14,6.2032]
[1768378910767,3.66527012,145.18,145.12,9.67594868]
[1768378919285,3.66527012,145.18,145.12,6.2038]
[1768378920781,3.66527012,145.18,145.12,9.67594868]
[1768378923194,9.86697012,145.18,145.12,9.67594868]
[1768378923693,3.61883143,145.17,145.12,9.67594868]
[1768378927399,3.61883143,145.17,145.12,6.2038]
[1768378927600,3.38174707,145.14,145.08,3.41676569]
[1768378927795,3.38174707,145.14,145.06,3.41676569]
[1768378928499,3.38174707,145.14,145.08,6.2059]
[1768378928895,3.38174707,145.13,145.08,6.2059]
[1768378929096,0.04420709,145.12,145.08,6.2059]
[1768378930200,0.04420709,145.12,145.07,6.2063]
[1768378931797,0.04420709,145.12,145.07,9.62306569]
[1768378933098,3.42595416,145.12,145.06,6.2067]
[1768378933301,3.42595416,145.12,145.05,3.41676569]
[1768378933901,9.63015416,145.12,145.06,6.2067]
[1768378934100,9.63015416,145.12,145.06,9.62346569]
[1768378934298,9.63015416,145.12,145.06,3.41676569]
[1768378934499,3.38174707,145.1,145.04,81.44]
[1768378934699,3.38174707,145.1,145.04,84.85676569]
[1768378934903,3.38174707,145.1,145.04,3.41676569]
[1768378935207,0.05178316,145.08,145.04,3.41676569]
[1768378944017,3.5625268,145.08,145.02,3.24633514]
[1768378944715,6.2064,145.07,145.02,3.24633514]
[1768378945511,6.2068,145.06,145.02,3.24633514]
[1768378946011,6.2068,145.06,145.03,0.04733592]
[1768378947112,9.7688268,145.08,145.03,0.04733592]
[1768378949709,3.51074364,145.07,145.03,0.04733592]
[1768378949909,9.71714364,145.07,145.03,0.04733592]
[1768378952714,9.71754364,145.06,145.03,0.04733592]
[1768378952910,9.71754364,145.06,145.0,3.24633514]
[1768378953316,3.51074364,145.06,145.01,3.24633514]
[1768378954216,0.04574761,145.05,145.01,3.24633514]
[1768378970120,0.04574761,145.05,145.0,6.2093]
[1768378970328,0.04574761,145.05,145.0,9.57313024]
[1768378970527,0.04574761,145.05,145.01,3.36383024]
[1768379008952,0.04574761,145.05,144.99,3.34224168]
[1768379008953,3.30982857,145.04,144.99,3.34224168]
[1768379009453,5.44146644,145.04,144.99,3.34224168]
[1768379009753,6.2081,145.03,144.99,3.34224168]
[1768379010345,6.2086,145.02,144.97,3.34224168]
[1768379011056,0.04379743,145.01,144.97,3.34224168]
[1768379011356,6.25279743,145.01,144.95,3.34224168]
[1768379012054,3.353626,145.01,144.95,3.34224168]
[1768379012557,9.562926,145.01,144.95,3.34224168]
[1768379016059,6.2094,145.0,144.95,3.34224168]
[1768379017866,6.2094,145.0,144.96,0.04624036]
[1768379021268,3.21754484,144.99,144.94,3.19544103]
[1768379022674,0.04481932,144.98,144.94,3.19544103]
[1768379023968,0.04481932,144.98,144.94,9.40734103]
[1768379024167,3.21754484,145.01,144.95,3.19544103]
[1768379025377,5.34918271,145.03,144.95,3.19544103]
[1768379025576,0.0526369,144.99,144.95,3.19544103]
[1768379027175,0.0526369,144.99,144.95,11.5383789]
[1768379027372,9.42594484,145.03,144.98,3.19544103]
[1768379027883,6.2084,145.03,144.98,3.19544103]
[1768379028579,0.0510451,145.02,144.98,3.19544103]
[1768379036681,0.0510451,145.02,144.98,9.40564103]
[1768379036881,0.0510451,145.02,144.99,3.19544103]
[1768379047302,2.13163787,145.07,145.0,3.36534299]
[1768379047998,8.33793787,145.07,145.01,3.36534299]
[1768379048500,0.04604751,145.05,145.01,3.36534299]
[1768379050704,0.04604751,145.05,145.01,9.57414299]
[1768379050900,171.05599139,145.1,145.02,3.36534299]
[1768379051201,171.05599139,145.1,145.02,3.41563222]
[1768379051500,6.2055,145.09,145.03,3.36534299]
[1768379052196,6.2055,145.09,145.05,0.04964451]
[1768379053603,9.69682136,145.11,145.05,3.4149875]
[1768379055104,3.49182136,145.11,145.05,3.4149875]
[1768379055401,11.82755923,145.13,145.05,3.4149875]
[1768379055605,9.69612136,145.12,145.05,3.4149875]
[1768379056906,3.49182136,145.12,145.06,3.36534299]
[1768379057792,3.49182136,145.12,145.06,9.57194299]
[1768379058193,5.62345923,145.12,145.06,9.57194299]
[1768379059907,5.62345923,145.12,145.07,9.73657192]
[1768379060607,5.62345923,145.12,145.08,0.04690025]
[1768379060806,2.13163787,145.12,145.08,3.57727217]
[1768379061407,3.24837573,145.14,145.08,9.78297217]
[1768379066409,3.24837573,145.12,145.08,0.04690025]
[1768379066808,3.24837573,145.12,145.06,9.73677192]
[1768379067009,3.24837573,145.12,145.06,3.53037192]
[1768379067198,3.24837573,145.12,145.09,0.04521143]
[1768379067404,3.29835949,145.1,145.04,9.73767192]
[1768379067606,3.29835949,145.1,145.04,3.53037192]
[1768379070913,0.04998376,145.1,145.04,3.53037192]
[1768379071908,0.04998376,145.1,145.04,9.73787192]
[1768379072109,0.04998376,145.1,145.05,3.53037192]
[1768379080218,0.04998376,145.1,145.05,9.73757192]
[1768379080418,0.04998376,145.1,145.06,3.63853778]
[1768379082220,3.55314812,145.14,145.06,9.84533778]
[1768379082419,3.55314812,145.14,145.07,0.04424462]
[1768379083626,9.75734812,145.12,145.07,0.04424462]
[1768379086824,3.55314812,145.11,145.04,3.63853778]
[1768379087023,3.60241583,145.11,145.04,3.63853778]
[1768379087815,9.75824812,145.1,145.04,3.63853778]
[1768379089631,3.55314812,145.08,145.03,6.2078]
[1768379090326,3.55314812,145.08,145.02,85.11853778]
[1768379092120,9.75904812,145.08,145.02,85.11853778]
[1768379092622,3.55314812,145.07,145.02,85.11853778]
[1768379092921,3.55314812,145.07,145.01,6.2085]
[1768379092922,3.55314812,145.07,145.01,9.84703778]
[1768379093826,3.55314812,145.07,145.02,3.63853778]
[1768379094033,9.75954812,145.07,145.0,3.63853778]
[1768379094232,0.04779519,145.05,145.0,3.63853778]
[1768379097935,0.04779519,145.05,145.01,3.68554754]
[1768379103340,0.04779519,145.05,144.98,6.2099]
[1768379103341,3.55314812,145.04,144.98,6.2099]
[1768379103838,3.55314812,145.04,144.98,9.84843778]
[1768379106636,6.25499519,145.05,144.99,3.70548954]
[1768379106840,0.04779519,145.05,145.0,3.70548954]
[1768379107837,0.04779519,145.05,145.01,3.70548954]
[1768379109243,3.54560955,145.05,144.98,85.20548954]
[1768379109439,3.54560955,145.05,144.99,3.70548954]
[1768379110749,9.75290955,145.05,144.99,3.70548954]
[1768379113845,6.25509519,145.05,144.99,3.70548954]
[1768379118146,9.75290955,145.05,144.99,3.70548954]
[1768379119953,6.2078,145.04,144.99,3.70548954]
[1768379123560,10.05159588,145.04,144.99,3.70548954]
[1768379124170,10.05159588,145.04,144.98,81.5]